{"text_format":"3","workbook":"xlsx","n_sheets":13,"sheets":["Начало","Основные сведения","Общие сведения о функциях","СРЗНАЧ","МИН И МАКС","Дата и время","Объединение текста и чисел","Операторы ЕСЛИ","ВПР","Условные функции","Мастер функций","Ошибки в формулах","Дополнительные сведения"],"not_rendered":{"images":30,"defined_names":21},"read":"whole","date_system":"1900"}

{"sheet":"Начало","index":0,"n_rows":4,"n_cols":1,"rows_kept":4}
[]
["Начало работы с формулами"]
["Выполнив всего несколько шагов, вы научитесь вводить формулы и функции в Excel — самом популярном приложении для работы с электронными таблицами."]
["Чтобы вернуться в начало страницы, нажмите клавиши CTRL+HOME. Чтобы начать курс, нажмите клавиши CTRL+PAGE DOWN."]

{"sheet":"Основные сведения","index":1,"n_rows":43,"n_cols":10,"rows_kept":43}
["Основные сведения: математические расчеты в Excel"]
["Вы можете складывать, вычитать, умножать и делить числа в Excel, не используя встроенные функции. Для этого потребуются только основные операторы: +, -, *, /. Все формулы начинаются со знака равенства (=).\n",null,"Числа:",null,"Операция:","Формулы:","Ответы:"]
["Чтобы сложить числа, выделите ячейку F3, введите =C3+C4, а затем нажмите клавишу ВВОД. \n",null,1,null,"Сложение (+) ",null,{"$f":"C3+C4","v":3}]
["Чтобы вычесть числа, выделите ячейку F4, введите =C3-C4, а затем нажмите клавишу ВВОД. ",null,2,null,"Вычитание (-) ",null,{"$f":"C3-C4","v":-1}]
["Чтобы умножить числа, выделите ячейку F5, введите =C3*C4, а затем нажмите клавишу ВВОД.\n",{"$nulls":3},"Умножение (*) ",null,{"$f":"C3*C4","v":2}]
["Чтобы поделить числа, выделите ячейку F6, введите =C3/C4, а затем нажмите клавишу ВВОД.\n",{"$nulls":3},"Деление (/) ",null,{"$f":"C3/C4","v":0.5}]
["Введите в ячейки C3 и C4 другие числа и посмотрите, как автоматически изменятся результаты формулы.",{"$nulls":3},"Возведение в степень (^) ",null,{"$f":"C3^C4","v":1}]
["ДОПОЛНИТЕЛЬНО Чтобы возвести значение в степень, используйте символ крышки (^), например: =A1^A2. Для ввода формулы нажмите SHIFT+6. В ячейке F7 введите =C3^C4."]
["Подробнее"]
["Следующий шаг"]
["Немного о формулах, ячейках и диапазонах"]
["Листы Excel состоят из ячеек, которые сгруппированы по строкам и столбцам. Строкам присвоены номера, а столбцам — буквы. На листе больше миллиона строк и 16 000 столбцов, и вы можете вставлять формулы в любые ячейки на их пересечении. \n"]
["Формулы могут содержать ссылки на ячейки, диапазоны, операторы и константы. Вот примеры формул:\n\n=A1+B1\n=10+20\n=СУММ(A1:A10)\n\n"]
["Как вы заметили, в третьем примере мы использовали функцию СУММ. Функция — это встроенная команда, которая принимает значения, определенным образом обрабатывает их и возвращает результат. Например, функция СУММ принимает в качестве значений ссылки на ячейки или диапазоны и суммирует их. В данном примере она вычисляет сумму значений в ячейках с A1 по A10. В Excel более 400 функций, и все их можно найти на вкладке «Формулы».\n"]
["Формулы с функциями начинаются со знака равенства, за которым следуют имя функции и ее аргументы (значения, которые функция использует для вычисления), заключенные в круглые скобки. \n"]
["Чтобы подтвердить формулу, нужно нажать клавишу ВВОД. После этого формула будет вычислена, а результат отобразится в ячейке. Чтобы просмотреть саму формулу, взгляните на строку формул под лентой или нажмите клавишу F2, чтобы перейти в режим правки, в котором формула выводится в ячейке. Нажмите клавишу ВВОД еще раз, чтобы завершить работу над формулой и вычислить результат.\n\n"]
["Пояснения формул"]
["=10+20 — это формула, где 10 и 20 — константы, а + — оператор."]
["=СУММ(A1:A10) — это формула, в которой СУММ — это имя функции, в скобках указаны ее аргументы, а A1:A10 — диапазон ячеек для функции."]
["=СУММ(A1:A10;C1:C10) — это формула, в которой СУММ — это имя функции, в скобках указаны ее аргументы, а A1:A10 иC1:C10— диапазоны ячеек, разделенные точкой с запятой."]
["ПОЛЕЗНЫЕ СВЕДЕНИЯ Константы — это значения, которые вводятся в ячейки и формулы. Хотя формула =10+20 может давать тот же результат, что и =A1+B1, использовать константы не рекомендуется. Это объясняется следующим: чтобы увидеть значение константы, нужно выделить ячейку и найти его в ней. Из-за этого константы сложно изменять. Гораздо удобнее ввести значения в отдельные ячейки, где их можно легко изменять, и добавить ссылки на них в формулу.\n\nНапример, выделите желтую ячейку с числом 12 ниже. Вы увидите, что в ней используется функция СУММ, которая ссылается на диапазон ячеек. В формуле нет самих чисел 4 и 8. \n"]
["Назад"]
["Далее"]
["Дополнительные сведения в Интернете"]
["Использование Microsoft Excel в качестве калькулятора"]
["Полные сведения о формулах в Excel"]
["Функции Excel (по категориям) "]
["Функции Excel (по алфавиту) "]
["Бесплатные учебные веб-курсы по Excel"]
{"$rows_empty":10}
[{"$nulls":9},"Значения"]
[{"$nulls":9},4]
[{"$nulls":9},8]
[{"$nulls":9},{"$f":"SUM(J41:J42)","v":12}]

{"sheet":"Общие сведения о функциях","index":2,"n_rows":51,"n_cols":7,"rows_kept":51}
["Общие сведения о функциях"]
["Функции позволяют выполнять математические операции, подставлять значения, рассчитывать значения даты и времени и делать многое другое. Попробуем сложить значения с помощью функции СУММ несколькими способами.",null,"Фрукт","Количество",null,"Мясо","Количество"]
["В столбце «Количество» для фруктов (ячейка D7) введите =СУММ(D3:D6). Вы также можете ввести =СУММ( и выбрать диапазон с помощью мыши, а затем нажать клавишу ВВОД. При этом будут просуммированы значения в ячейках D3, D4, D5 и D6. В результате должно получиться 170.\n",null,"Яблоки",50,null,"Говядина",50]
["Теперь давайте попробуем использовать автосуммирование. Выделите ячейку в таблице «Мясо» (G7), а затем щелкните «Формулы» > «Автосумма» и выберите операцию «Сумма». Excel автоматически введет формулу. Нажмите клавишу ВВОД, чтобы подтвердить ее. Автосуммирование поддерживает все часто используемые функции.\n",null,"Апельсины",20,null,"Курятина",30]
["Также можно использовать сочетание клавиш. Выберите ячейку D15, нажмите ALT=, а затем — ВВОД. При этом автоматически будет введена формула с функцией СУММ.",null,"Бананы",60,null,"Свинина",10]
["Подробнее",null,"Лимоны",40,null,"Рыба",50]
["ДОПОЛНИТЕЛЬНО\nПопробуйте использовать функцию СЧЁТ с помощью одного из этих способов. Она подсчитывает количество ячеек в диапазоне, содержащих числа.",null,"Сумма > ",{"$f":"SUM(D3:D6)","v":170},null,"Сумма > "]
["Следующий шаг"]
["Еще немного о функциях",null,"Товар","Количество",null,"Товар","Количество"]
["Откройте вкладку «Формулы» и просмотрите библиотеку функций. В ней функции упорядочены по категориям, например «Текстовые», «Дата и время» и т. д. Если нажать кнопку «Вставить функцию», можно будет найти функцию по имени. После этого запустится мастер функций, который поможет вам создать формулу. \n\nЕсли нажать = и начать вводить имя функции, активируется средство Intellisense, которое перечисляет все функции, названия которых начинаются с вводимых букв. Когда вы найдете нужный вариант, нажмите клавишу TAB, и Excel автоматически завершит имя функции и введет открывающую круглую скобку. Кроме того, будут показаны обязательные и необязательные аргументы. \n\n\n\nРассмотрим структуру нескольких функций. Функция СУММ имеет следующий синтаксис:",null,"Хлеб",50,null,"Хлеб",50]
["Функция СУММ возвращает сумму всех значений в ячейках с D35 по D38 и во всем столбце H. СУММ — это имя функции, D35:D38 — первый аргумент диапазона (он почти всегда является обязательным), а H:H — второй аргумент диапазона, отделенный точкой с запятой. Теперь рассмотрим функцию, которая не требует никаких аргументов.\n",null,"Пончики",100,null,"Пончики",100]
["Функция СЕГОДНЯ возвращает текущую дату. Ее результат автоматически обновляется при пересчете книги Excel.",null,"Печенье",40,null,"Печенье",40]
["ПОПРОБУЙТЕ САМИ!\nВыделите эти ячейки. Затем в правом нижнем углу окна Excel найдите надпись «Сумма: 170». Эта нижняя область называется строкой состояния. В ней можно быстро просмотреть итоговое значение и другие сведения о выделенной ячейке или диапазоне. ",null,"Торты",50,null,"Торты",50]
["ВАЖНО\nДважды щелкните эту ячейку. Вы заметите число 100 в конце. Хотя в формулу можно вставлять числа таким образом, делайте это только в исключительных случаях. Это число называется константой, и вы легко можете забыть о его наличии в формуле. Вместо этого рекомендуется включить ссылку на другую ячейку, например F51. Вы легко заметите константу, которая не будет скрыта в формуле. ",null,"Пироги",20,null,"Пироги",20]
["Дополнительные сведения в Интернете",null,"Сумма > ",null,null,"Счет >"]
["Все о функции СУММ"]
["Использование функции «Автосумма» для суммирования чисел"]
["Все о функции СЧЁТ"]
["Бесплатные учебные веб-курсы по Excel"]
["В начало страницы"]
["Следующий шаг"]
{"$rows_empty":12}
[null,null,"Фрукт","Количество"]
[null,null,"Яблоки",50]
[null,null,"Апельсины",20]
[null,null,"Бананы",60]
[null,null,"Лимоны",40]
[null,null,"Сумма > ",{"$f":"SUM(D35:D38)","v":170}]
[]
[]
[]
[]
[null,null,"Товар","Количество"]
[null,null,"Автомобили",20]
[null,null,"Грузовики",10]
[null,null,"Велосипеды",10]
[null,null,"Коньки",40]
[]
[{"$nulls":3},"Итого:",null,"Дополнительное значение","Новый итог"]
[{"$nulls":3},{"$f":"SUM(D45:D48,100)","v":180},null,100,{"$f":"SUM(D45:D48,F51)","v":180}]

{"sheet":"СРЗНАЧ","index":3,"n_rows":15,"n_cols":7,"rows_kept":15}
["Функция СРЗНАЧ"]
["Функция СРЗНАЧ вычисляет среднее значение чисел в диапазоне ячеек.",null,"Фрукт","Количество",null,"Мясо","Количество"]
["Выберите ячейку D7, а затем добавьте функцию СРЗНАЧ с помощью автосуммирования.",null,"Яблоки",50,null,"Говядина",50]
["Затем выберите ячейку G7 и введите функцию СРЗНАЧ: =СРЗНАЧ(G3:G6). ",null,"Апельсины",20,null,"Курятина",30]
["В ячейке D15 можно воспользоваться автосуммированием или же ввести другую функцию СРЗНАЧ от руки. ",null,"Бананы",60,null,"Свинина",10]
["ПОПРОБУЙТЕ САМИ!\nВыберите любой диапазон чисел, а затем взгляните на строку состояния, чтобы узнать их среднее значение.\n",null,"Лимоны",40,null,"Рыба",50]
["Активировать предыдущий лист",null,"Среднее >",null,null,"Среднее >"]
["Перейти к следующему листу"]
["ДОПОЛНИТЕЛЬНО\nПопробуйте использовать здесь функцию МЕДИАНА или МОДА. \n\nМЕДИАНА выводит значение, которое приходится на середину набора данных, а  \nМОДА — самое частое значение.\n",null,"Товар","Количество",null,"Товар","Количество"]
["Дополнительные сведения в Интернете",null,"Хлеб",50,null,"Хлеб",50]
["Подробные сведения о функции СРЗНАЧ в Интернете",null,"Пончики",100,null,"Пончики",100]
["Подробные сведения о функции МЕДИАНА в Интернете",null,"Печенье",40,null,"Печенье",40]
["Подробные сведения о функции МОДА в Интернете",null,"Торты",50,null,"Торты",50]
["Сведения о бесплатных учебных веб-курсах по Excel",null,"Пироги",20,null,"Пироги",20]
[null,null,"Среднее >"]

{"sheet":"МИН И МАКС","index":4,"n_rows":15,"n_cols":7,"rows_kept":15}
["Функции МИН и МАКС"]
["Функция МИН выводит минимальное число в диапазоне ячеек.",null,"Фрукты","Количество",null,"Мясо","Количество"]
["Функция МАКС позволяет узнать самое большое число в диапазоне ячеек.",null,"Яблоки",50,null,"Говядина",50]
["Выберите ячейку D7, а затем добавьте функцию МИН с помощью мастера автосуммирования.\n",null,"Апельсины",20,null,"Курятина",30]
["Затем выберите ячейку G7 и введите функцию МАКС: =МАКС(G3:G6).\n",null,"Бананы",60,null,"Свинина",10]
["В ячейке D15 можно воспользоваться мастером автосуммирования или же ввести функцию МИН или МАКС от руки. \n",null,"Лимоны",40,null,"Рыба",50]
["Дополнительные сведения в Интернете\n",null,"Минимум >",null,null,"Максимум >"]
["Все о функции МИН"]
["Все о функции МАКС",null,"Товар","Количество",null,"Товар","Количество"]
["Бесплатные учебные веб-курсы по Excel",null,"Хлеб",50,null,"Хлеб",50]
["ПОЛЕЗНЫЕ СВЕДЕНИЯ\nФункцию МИН или МАКС можно использовать с несколькими диапазонами или значениями, например =МИН(A1:A10;B1:B10) или =МАКС(A1:A10;B1). В последней формуле B1 является пороговым значением, то есть формула никогда не выводит результат меньше B1.\n",null,"Пончики",100,null,"Пончики",100]
[null,null,"Печенье",40,null,"Печенье",40]
[null,null,"Торты",50,null,"Торты",50]
[null,null,"Пироги",20,null,"Пироги",20]
[null,null,"Минимум или максимум >",{"$nulls":3},{"$f":"MIN(G10:G14,10)","v":10}]

{"sheet":"Дата и время","index":5,"n_rows":47,"n_cols":6,"rows_kept":47,"merged":[[4,2,4,3],[26,2,26,3],[30,2,30,3],[44,2,44,3]]}
["Функции даты"]
["Excel может вывести текущую дату с учетом региональных параметров компьютера. Кроме того, он может складывать и вычитать даты."]
["Попробуйте использовать функцию СЕГОДНЯ, которая выводит сегодняшнюю дату. Это динамическая функция, поэтому если вы откроете книгу завтра, дата изменится. Введите =СЕГОДНЯ() в ячейку D6. \n"]
["Вычитание дат: введите в ячейку D7 свой следующий день рождения в формате дд.мм.гг, и Excel подсчитает в ячейке D8, сколько дней до него осталось, с помощью формулы = D7-D6.\n"]
["Сложение дат: предположим, вы хотите узнать, когда следует оплатить счет или вернуть книгу в библиотеку. Для этого можно прибавить нужное количество дней к дате. В ячейке D10 введите какое-либо число дней. В ячейке D11 указана формула =D6+D10, которая рассчитывает срок начиная с текущей даты.\n",null,"Функции даты"]
["ПОЛЕЗНЫЕ СВЕДЕНИЯ\nExcel хранит даты в виде количества дней, прошедших с 1 января 1900 г. Значения времени переводятся в минуты и хранятся как дробные части дня. Например, значение 12:30 01.01.2017 хранится как 42736,5208. Если значения времени или даты отображаются в виде таких чисел, вы можете нажать клавиши CTRL+1 и на вкладке Число выбрать формат «Дата» или «Время». ",null,"Сегодняшняя дата:",null,null,{"$f":"IF(D6=TODAY(),\"Ура!\",\"\")","v":""}]
["ВАЖНО\nЕсли вы не хотите, чтобы Excel выводил отрицательное число, потому что вы еще не указали свой день рождения, используйте формулу =ЕСЛИ(D7=\"\";\"\";D7-D6). Она означает следующее: если ячейка D7 пуста, ничего не отображать, в противном случае вывести D7 минус D6.\n",null,"Ваш день рождения:"]
["Функции времени",null,"Дней до дня рождения:",{"$f":"D7-D6","v":0}]
["Excel может вывести текущее время с учетом региональных параметров компьютера. Кроме того, он может складывать и вычитать значения времени. Например, вы можете отслеживать, сколько часов в неделю проработал сотрудник, чтобы вычислять его зарплату и сверхурочные.\n"]
["В ячейке D28 введите =ТДАТА(). Эта формула возвращает текущее время, которое обновляется при каждом пересчете книги Excel. Если вам нужно изменить формат времени, нажмите клавиши CTRL+1, на вкладке «Число» щелкните «Время» и выберите нужный формат.\n",null,"Период оплаты:"]
["Чтобы определить количество часов между значениями времени, в ячейке D36 мы ввели формулу =((D35-D32)-(D34-D33))*24, которая вычисляет время начала и окончания работы, а затем вычитает время, затраченное на обед. Операция *24 в конце формула преобразует дробную часть дня, которая хранится в Excel, в часы. Вам потребуется отформатировать ячейку как число. Чтобы сделать это, откройте вкладку «Главная», нажмите кнопку «Формат» и выберите «Формат ячеек» (или же нажмите клавиши CTRL+1), а затем на вкладке «Число» щелкните «Числовой» и задайте 2 десятичных знака.\n\n",null,"Срок платежа:",{"$f":"D6+D10","v":"00:00:00"}]
["Вот как расшифровывается эта формула: возьмем время окончания работы и вычтем из него время начала, затем отнимем от полученного значения разницу между окончанием и началом обеда и умножим результат на 24, чтобы преобразовать дробные значения времени в часы. Схематично это можно представить как =((Время окончания – Время начала) – (Окончание обеда – Начало обеда))*24."]
["Назад"]
["Далее"]
["Дополнительные сведения в Интернете"]
["Все о функции СЕГОДНЯ"]
["Все о функции ТДАТА"]
["Все о функции ДАТА"]
["Бесплатные учебные веб-курсы по Excel"]
{"$rows_empty":7}
[null,null,"Функции времени"]
[null,null,"Текущее время:"]
[]
[]
[null,null,"Отработано часов"]
[null,null,"Время начала:","08:00:00"]
[null,null,"Окончание обеда:","12:00:00"]
[null,null,"Начало обеда:","13:00:00"]
[null,null,"Время окончания:","17:00:00"]
[null,null,"Всего часов:",{"$f":"((D35-D32)-(D34-D33))*24","v":8.000000000000002}]
{"$rows_empty":8}
[null,null,"Статические значения даты и время"]
[null,null,"Дата:","2017-09-27"]
[null,null,"Время:","08:52:00"]

{"sheet":"Объединение текста и чисел","index":6,"n_rows":37,"n_cols":6,"rows_kept":37,"merged":[[26,2,26,3],[30,2,30,3],[34,2,34,3]]}
["Объединение текста из разных ячеек"]
["В Excel часто приходится объединять текстовые строки, которые находятся в разных ячейках. Допустим, у вас есть списки имен и фамилий и вы хотите объединить их в полные имена. К счастью, в Excel это можно сделать с помощью амперсанда (&), который вводится путем нажатия клавиш SHIFT+7.\n",null,"Имя","Фамилия","Имя Фамилия","Фамилия Имя"]
["В ячейке E3 введите =D3&C3, чтобы объединить фамилии и имена. \n",null,"Надежда","Колесникова",{"$f":"D3&\", \"&C3","v":"Колесникова, Надежда"},{"$f":"C3&\" \"&D3","v":"Надежда Колесникова"}]
["Хм, «КолесниковаНадежда» смотрится не так уж красиво. Нужно добавить пробел. Используем кавычки, чтобы создать новую текстовую строку. Введем =D3&\",\"&C3. Синтаксис &\",\"& позволяет объединить пробел с текстом в ячейках.\n",null,"Виктор","Дегтярев"]
["Кроме того, соединим имя с фамилией в обратном порядке. В ячейке F3 введем =C3&\" \"&D3.\n",null,"Виталий","Токарев"]
["Подробнее",null,"Валентина","Александрова"]
["Далее",null,"Николай","Белых"]
["Объединение текста и чисел",null,"Василий","Бутусов"]
["Попробуем объединить с помощью оператора & не только текстовые строки, но и числа.\n\nВзгляните на диапазон C28:D29. Значения даты и времени указаны в разных ячейках. Их можно объединить с помощью символа &, но результат в ячейках C32:C33 не слишком радует. К сожалению, Excel не знает, как вы хотите отформатировать числа, поэтому представляет их в базовом формате. В данном случае это порядковый номер даты. Нужно в явном виде указать, как следует отформатировать число в формуле. Для этого можно использовать функцию ТЕКСТ и код формата.",null,"Кирилл","Крюков"]
["В ячейке C36 введите =C28&\" \"&ТЕКСТ(D28;\"ДД.ММ.ГГГГ\"). ДД.ММ.ГГГГ — это русский формат даты, например 23.09.2017.\n",null,"Евгения","Маслова"]
["В ячейке C37 введите =C29&\" \"&ТЕКСТ(D29;\"Ч:ММ\"). Ч:ММ — это русский формат времени, например 13:30.\n\n"]
["ПОПРОБУЙТЕ САМИ!\nФормулы, особенно длинные, иногда сложно читать. Вы можете разделить их на части пробелами:\n\n=C28 & \" \" & ТЕКСТ(D28;\"ДД.ММ.ГГГГ\")"]
["ЭТО СЛЕДУЕТ ЗНАТЬ\nЕсли вы не знаете, какой формат кода использовать, можно нажать клавиши CTRL+1 и открыть вкладку «Число», чтобы отформатировать любую ячейку нужным образом. Затем выберите пункт «(все форматы)». Вы можете скопировать нужный код формата в формулу."]
["Дополнительные сведения в Интернете"]
["Все о функции ТЕКСТ"]
["Объединение текста и чисел"]
["Бесплатные учебные веб-курсы по Excel"]
{"$rows_empty":9}
[null,null,"Использование текста и чисел"]
[null,null,"Сегодняшняя дата:",{"$f":"TODAY()","v":"2021-10-19"}]
[null,null,"Текущее время:",{"$f":"NOW()","v":44488.48029675926}]
[]
[null,null,"Объединение текста и чисел"]
[null,null,{"$f":"C28&\" \"&D28","v":"Сегодняшняя дата: 44488"}]
[null,null,{"$f":"C29&\" \"&D29","v":"Текущее время: 44488.4802967593"}]
[]
[null,null,"Форматирование текста и чисел"]
[null,null,{"$f":"C28 &\" \"& TEXT(D28,\"ДД.ММ.ГГГГ\")","v":"Сегодняшняя дата: ДД44488.ММ.ГГГГ"}]
[null,null,{"$f":"C29&\" \"&TEXT(D29,\"Ч:ММ\")","v":"Текущее время: Ч:ММ"}]

{"sheet":"Операторы ЕСЛИ","index":7,"n_rows":37,"n_cols":6,"rows_kept":37,"merged":[[7,2,7,3]]}
["Операторы ЕСЛИ"]
["Операторы ЕСЛИ позволяют выполнять логические сравнения условий. Обычно оператор ЕСЛИ означает следующее: если условие имеет значение ИСТИНА, следует выполнить некое действие, в противном случае необходимо выполнить другое действие. Формулы могут возвращать текст, значения или даже другие вычисления."]
["В ячейке D9 введите =ЕСЛИ(C9=\"Яблоко\";ИСТИНА;ЛОЖЬ). Правильный ответ — ИСТИНА. \n"]
["Скопируйте ячейку D9 в D10. В ней будет выведен ответ ЛОЖЬ, так как апельсины и яблоки — разные вещи.\n"]
["Попробуем еще один пример. Взгляните на формулу в ячейке D12: =ЕСЛИ(C12<100;\"Меньше 100\";\"100 или больше\"). Что произойдет, если в ячейке C12 ввести число больше 100?\n"]
["ВАЖНЫЕ СВЕДЕНИЯ\nВ отличие от других слов, значения ИСТИНА и ЛОЖЬ не нужно заключать в кавычки. Кроме того, Excel автоматически пишет их с большой буквы. Для чисел также не нужны кавычки. Обычный текст, такой как «Да» или «Нет», необходимо заключать в кавычки: \n=ЕСЛИ(C9=\"Яблоко\";\"Да\";\"Нет\")"]
["Подробнее"]
["Далее",null,"Операторы ЕСЛИ"]
["Оператор ЕСЛИ с другой функцией",null,"Яблоко"]
["С помощью операторов ЕСЛИ также можно выполнять дополнительные вычисления при соблюдении определенного условия. В этом примере мы определим, нужно ли взимать НДС, и вычислим его, если условие соблюдается.\n",null,"Апельсин"]
["В ячейке F33 мы ввели =ЕСЛИ(E33=\"Да\";F31*НДС;0), где «НДС» — это именованный диапазон со значением 0,0825. Формула означает следующее: если значение в ячейке E33 равно «Да», следует умножить значение в ячейке F31 на НДС, в противном случае вернуть 0.\n\nВыберите «Нет» вместо «Да» в ячейке E33 и посмотрите, как изменится вычисление."]
["Затем мы добавим оператор ЕСЛИ, чтобы рассчитать стоимость доставки, если она требуется. В ячейке F35 указана формула =ЕСЛИ(E35=\"Да\";СУММ(D28:D29)*1,25;0). Она означает следующее: если ячейка E35 имеет значение «Да», следует вычислить сумму в столбце «Количество» приведенной выше таблицы и умножить ее на 1,25, в противном случае необходимо вернуть 0.\n",null,50,{"$f":"IF(C12<100,\"Меньше 100\",\"100 или больше\")","v":"Меньше 100"}]
["Теперь замените 1,25 в формуле в ячейке F35 словом «Доставка». По мере ввода Excel найдет и предложит вам это значение. Нажмите клавишу TAB, чтобы ввести его. Это именованный диапазон, который мы определили с помощью команды «Формулы» > «Задать имя». Если вам когда-либо потребуется изменить стоимость доставки, вы можете сделать это один раз, а затем использовать имя «Доставка» в любой ячейке книги.\n\n"]
["ПОЛЕЗНЫЕ СВЕДЕНИЯ\nПри создании формулы Excel автоматически выводит цветные границы вокруг диапазонов, на которые она ссылается; при этом цвет границ соответствует цвету диапазона в формуле. Убедитесь в этом сами: выделите ячейку F33 и нажмите клавишу F2, чтобы изменить формулу."]
["СОВЕТ ЭКСПЕРТА\nБлагодаря именованным диапазонам можно определить условия или значения один раз, а затем многократно использовать их в книге. Чтобы просмотреть все именованные диапазоны в книге, выберите «Формулы» > «Диспетчер имен». Щелкните здесь, чтобы узнать больше.\n"]
["Назад"]
["Далее"]
["Дополнительные сведения в Интернете"]
["Все о функции ЕСЛИ"]
["Все о функции ЕСЛИМН"]
["Сложные операторы ЕСЛИ"]
["Бесплатные учебные веб-курсы по Excel"]
[]
[]
[]
[]
[null,null,"Товар","Количество","Стоимость","Итого"]
[null,null,"Вилка",2,{"v":9.760711585683554,"d":"9.76 ₽"},{"$f":"'Операторы ЕСЛИ'!$E$28:$E$29*'Операторы ЕСЛИ'!$D$28:$D$29","v":{"v":19.521423171367108,"d":"19.52 ₽"}}]
[null,null,"Ложка",3,{"v":3.4189202461080024,"d":"3.42 ₽"},{"$f":"'Операторы ЕСЛИ'!$E$28:$E$29*'Операторы ЕСЛИ'!$D$28:$D$29","v":{"v":10.256760738324008,"d":"10.26 ₽"}}]
[]
[{"$nulls":3},"Промежуточный итог",{"$f":"SUM('Операторы ЕСЛИ'!$E$28:$E$29)","v":{"v":13.179631831791557,"d":"13.18 ₽"}},{"$f":"SUM('Операторы ЕСЛИ'!F28:F29)","v":{"v":29.778183909691116,"d":"29.78 ₽"}}]
[]
[{"$nulls":3},"НДС?","Да",{"$f":"IF(E33=\"Да\",F31*НДС,0)","v":{"v":2.456700172549517,"d":"2.46 ₽"}}]
[]
[{"$nulls":3},"Доставка?","Да",{"$f":"IF(E35=\"Да\",SUM(D28:D29)*1.25,0)","v":{"v":6.25,"d":"6.25 ₽"}}]
[]
[{"$nulls":3},"Итого",null,{"$f":"SUM(F33,F31,F35)","v":{"v":38.48488408224063,"d":"38.48 ₽"}}]

{"sheet":"ВПР","index":8,"n_rows":43,"n_cols":7,"rows_kept":43}
["ВПР"]
["ВПР — одна из самых популярных (и наших любимых!) функций Excel. Она позволяет найти значение в столбце слева, а затем вернуть данные из другого столбца справа. У функции ВПР следующий синтаксис:\n"]
["=ВПР(A1;B:C;2;ЛОЖЬ)"]
["Что нужно найти?"]
["Из какого столбца справа нужно получить значение?"]
["Где нужно найти значение?"]
["Может ли совпадение быть неточным?"]
["В ячейке D22 введите =ВПР(C22;C17:D20;2;ЛОЖЬ). Правильный ответ для значения «Яблоки» — 50. Функция ВПР нашла значение «Яблоки», а затем вернула количество, указанное в столбце справа от него.\n\n"]
["Теперь попробуйте самостоятельно ввести формулу для таблицы «Мясо» в ячейку G22. Вы должны получить формулу =ВПР(F22;F17:G20;2;ЛОЖЬ).\n\n"]
["ЭКСПЕРИМЕНТ\nПопробуйте выбрать другие элементы из раскрывающихся списков. Значения в ячейках результатов мгновенно обновятся."]
["Подробнее"]
["Далее"]
["ВПР и #Н/Д"]
["Рано или поздно вы столкнетесь с тем, что функция ВПР не сможет найти требуемое значение и вернет ошибку #Н/Д. Это может произойти потому, что искомое значение не существует или ячейка, указывающая на него, пуста.\n"]
["Если вы знаете, что искомое значение существует, и хотите скрывать сообщение об ошибке, если ячейка, ссылающаяся на него, пуста, можно использовать оператор ЕСЛИ. При этом формула в ячейке D43 будет выглядеть следующим образом:\n\n=ЕСЛИ(C43=\"\";\"\";ВПР(C43;C37:D41;2;ЛОЖЬ))\n\nЭта формула означает, что если в ячейке C43 ничего нет (\"\"), возвращается пустое значение, а в противном случае возвращаются результаты функции ВПР. Обратите внимание на вторую круглую скобку в конце формулы. Она закрывает оператор ЕСЛИ.\n"]
["Если вы не уверены в том, что искомое значение существует, но не хотите, чтобы выводилась ошибка #Н/Д, вы можете использовать в ячейке G43 специальную функцию ЕСЛИОШИБКА: =ЕСЛИОШИБКА(ВПР(F43;F37:G41;2;ЛОЖЬ);\"\"). Если функция ВПР возвращает действительный результат, он будет выведен; в противном случае не отображается ничего (\"\"). Кроме того, вы можете вывести определенное число (0, 1, 2 и т. д.) или текстовое значение, например \"Неправильная формула\".\n",null,"Фрукт","Количество",null,"Мясо","Количество"]
["ВАЖНО\nФункция ЕСЛИОШИБКА является глобальным обработчиком ошибок, то есть подавляет любые ошибки в формуле. Это может привести к проблемам, если в формуле есть ошибка, которую следовало бы исправить.\n\nНе добавляйте обработчики ошибок в формулы, пока не будете абсолютно уверены в том, что они работают правильно.",null,"Яблоки",50,null,"Говядина",50]
["Назад",null,"Апельсины",20,null,"Курятина",30]
["Далее",null,"Бананы",60,null,"Свинина",10]
["Дополнительные сведения в Интернете",null,"Лимоны",40,null,"Рыба",50]
["Все о функции ВПР"]
["Все о функциях ИНДЕКС и ПОИСКПОЗ",null,"Яблоки",null,null,"Свинина"]
["Все о функции ЕСЛИОШИБКА"]
["Использование сводных таблиц для анализа данных"]
["Бесплатные учебные веб-курсы по Excel"]
{"$rows_empty":9}
[null,null,"Если бы функция СУММ в ячейке D42 могла говорить, вот что бы она сказала: просуммируйте значения в ячейках D38, D39, D40 и D41."]
[null,null,"Товар","Количество",null,"Товар","Количество"]
[null,null,"Хлеб",50,null,"Хлеб",50]
[null,null,"Пончики",100,null,"Пончики",100]
[null,null,"Печенье",40,null,"Печенье",40]
[null,null,"Торты",50,null,"Торты",50]
[null,null,"Пироги",20,null,"Пироги",20]
[]
[{"$nulls":3},{"$f":"VLOOKUP(C43,C37:D41,2,FALSE)","v":{"$error":"#N/A"}},null,"Выпечка",{"$f":"IFERROR(VLOOKUP(F43,F37:G41,2,FALSE),\"\")","v":""}]

{"sheet":"Условные функции","index":9,"n_rows":123,"n_cols":34,"rows_kept":123}
["Условные функции: СУММЕСЛИ"]
["Условные функции позволяют определять сумму, среднее, количество значений, минимум и максимум в диапазоне с учетом указанного условия. Например, можно определить, сколько в списке фруктов яблок или апельсинов сорта Florida.",null,"Фрукт","Количество",null,"Фрукт","Сорт","Количество",{"$nulls":17},"Фрукт",null,"Яблоки",null,"Апельсины",null,"Бананы",null,"Лимоны"]
["Функция СУММЕСЛИ позволяет вычислить сумму в одном диапазоне с учетом условия, соответствие которому определяется по другому диапазону. Например, так можно определить общее количество яблок. Выберите ячейку D17 и введите =СУММЕСЛИ(C3:C14;C17;D3:D14). Функция СУММЕСЛИ имеет следующий синтаксис:",null,"Яблоки",50,null,"Яблоки","Fuji",50,{"$nulls":17},"Яблоки",null,"Fuji",null,"Florida",null,"Cavendish",null,"Rough"]
[{"$f":"SUMIF(C3:C14,C17,D3:D14)","v":150},null,"Апельсины",20,null,"Апельсины","Florida",20,{"$nulls":17},"Апельсины",null,"Honeycrisp",null,"Navel",null,"Lady Finger",null,"Eureka"]
["В каком диапазоне нужно найти значение?",null,"Бананы",60,null,"Бананы","Cavendish",60,{"$nulls":17},"Бананы"]
["Какое значение (текстовое или числовое) нужно найти?",null,"Лимоны",40,null,"Лимоны","Rough",40,{"$nulls":17},"Лимоны"]
["В каком диапазоне нужно просуммировать соответствующие значения?",null,"Яблоки",50,null,"Яблоки","Honeycrisp",50]
["Функция СУММЕСЛИМН похожа на функцию СУММЕСЛИ, но позволяет задавать несколько условий. Например, в этом примере можно искать значения по столбцам «Фрукт» и «Сорт», а не только по столбцу «Фрукт». Выберите ячейку H17 и введите =СУММЕСЛИМН(H3:H14;F3:F14;F17;G3:G14;G17). Функция СУММЕСЛИМН имеет следующий синтаксис:\n",null,"Апельсины",20,null,"Апельсины","Navel",20]
["=СУММЕСЛИМН(H3:H14;F3:F14;F17;G3:G14;G17)",null,"Бананы",60,null,"Бананы","Lady Finger",60]
["В каком диапазоне нужно просуммировать значения?",null,"Лимоны",40,null,"Лимоны","Eureka",40]
["Первый диапазон для поиска соответствующих значений",null,"Яблоки",50,null,"Яблоки","Honeycrisp",50]
["Первое условие",null,"Апельсины",20,null,"Апельсины","Navel",20]
["Второй диапазон для поиска соответствующих значений",null,"Бананы",60,null,"Бананы","Cavendish",60]
["Второе условие",null,"Лимоны",40,null,"Лимоны","Eureka",40]
["СОВЕТ ЭКСПЕРТА\nВ ячейках «Фрукт» и «Сорт» есть раскрывающееся списки, в которых можно выбрать различные фрукты. Попробуйте сделать это и обратите внимание на то, как формулы автоматически обновляются."]
["Подробнее",null,"Фрукт","СУММЕСЛИ",null,"Фрукт","Сорт","СУММЕСЛИМН"]
["Следующий шаг",null,"Яблоки",null,null,"Апельсины","Florida"]
["Условные функции: СУММЕСЛИ"]
["Функции СЧЁТЕСЛИ и СЧЁТЕСЛИМН позволяют подсчитать значения в диапазоне с учетом указанных условий. Они отличаются от функций ЕСЛИ и ЕСЛИМН тем, что у них есть только условия и диапазон, в котором они проверяются. Они не суммируют значения в одном диапазоне после проверки значений в другом."]
["Выберите ячейку D64 и введите =СЧЁТЕСЛИ(C50:C61;C64). Функция СЧЁТЕСЛИ имеет следующий синтаксис:"]
["=СЧЁТЕСЛИ(C50:C61;C64)"]
["В каком диапазоне нужно найти значение?"]
["Какое значение (текстовое или числовое) нужно найти?"]
["Функция СЧЁТЕСЛИМН похожа на функцию СЧЁТЕСЛИ, но позволяет задавать несколько условий. Например, в этом примере можно искать значения по столбцам «Фрукт» и «Сорт», а не только по столбцу «Фрукт». Выберите ячейку H64 и введите =СЧЁТЕСЛИМН(F50:F61;F64;G50:G61;G64). Функция СЧЁТЕСЛИМН имеет следующий синтаксис:\n"]
["=СЧЁТЕСЛИМН(F50:F61;F64;G50:G61;G64)"]
["Первый диапазон для подсчета значений"]
["Первое условие"]
["Второй диапазон для подсчета значений"]
["Второе условие"]
["Подробнее"]
["Далее"]
["Другие условные функции"]
["Вы уже знакомы с функциями СУММЕСЛИ, СУММЕСЛИМН, СЧЁТЕСЛИ и СЧЁТЕСЛИМН. Теперь попробуйте самостоятельно изучить другие функции, например СРЗНАЧЕСЛИ, СРЗНАЧЕСЛИМН, МАКСЕСЛИМН или МИНЕСЛИМН. Все они имеют одинаковый синтаксис, поэтому если у вас уже есть формула, вы можете просто заменить в ней название функции. Ниже вы найдете все функции, которые можно использовать в ячейке E106. Вы можете скопировать и вставить их или попытаться ввести их самостоятельно, чтобы лучше запомнить.\n\nСУММЕСЛИ \t      =СУММЕСЛИ(C92:C103;C106;E92:E103) \nСУММЕСЛИМН      =СУММЕСЛИМН(E92:E103;C92:C103;C106;D92:D103;D106) \nСРЗНАЧЕСЛИ         =СРЗНАЧЕСЛИ(C92:C103;C106;E92:E103) \nСРЗНАЧЕСЛИМН   =СРЗНАЧЕСЛИМН(E92:E103;C92:C103;C106;D92:D103;D106)\nСЧЁТЕСЛИ \t      =СЧЁТЕСЛИ(C92:C103;C106)\nСЧЁТЕСЛИМН         =СЧЁТЕСЛИМН(C92:C103;C106;D92:D103;D106) \nМАКСЕСЛИМН       =МАКСЕСЛИМН(E92:E103;C92:C103;C106;D92:D103;D106)\nМИНЕСЛИМН        =МИНЕСЛИМН(E92:E103;C92:C103;C106;D92:D103;D106)"]
["Подробнее"]
["Далее"]
["Функция СУММЕСЛИ с аргументом значения"]
["Вот пример использования функции СУММЕСЛИ с оператором «больше» (>) для поиска всех значений, превышающих указанное:"]
[{"$f":"SUMIF(D118:D122,\">=50\")","v":200}]
["Сложить значения с учетом этого условия:"]
["Просмотреть эти ячейки:\n "]
["Если значение больше 50, добавить его в сумму.\n "]
["ПРИМЕЧАНИЕ. Если вы часто применяете условные формулы, возможно, стоит воспользоваться сводной таблицей. Дополнительные сведения см. в статье о сводных таблицах."]
["Дополнительные сведения в Интернете"]
["Все о функции СУММЕСЛИ"]
["Все о функции СУММЕСЛИМН"]
["Все о функции СЧЁТЕСЛИ"]
["Все о функции СЧЁТЕСЛИМН"]
["Все о функции СРЗНАЧЕСЛИ"]
["Все о функции СРЗНАЧЕСЛИМН",null,"Фрукт","Количество",null,"Фрукт","Сорт","Количество"]
["Все о функции МИНЕСЛИМН",null,"Яблоки",50,null,"Яблоки","Fuji",50]
["Все о функции МАКСЕСЛИМН",null,"Апельсины",20,null,"Апельсины","Florida",20]
["Создание раскрывающегося списка",null,"Бананы",60,null,"Бананы","Cavendish",60]
["Бесплатные учебные веб-курсы по Excel",null,"Лимоны",40,null,"Лимоны","Rough",40]
["В начало страницы",null,"Яблоки",50,null,"Яблоки","Honeycrisp",50]
["Далее",null,"Апельсины",20,null,"Апельсины","Navel",20]
[null,null,"Бананы",60,null,"Бананы","Lady Finger",60]
[null,null,"Лимоны",40,null,"Лимоны","Eureka",40]
[null,null,"Яблоки",50,null,"Яблоки","Honeycrisp",50]
[null,null,"Апельсины",20,null,"Апельсины","Navel",20]
[null,null,"Бананы",60,null,"Бананы","Cavendish",60]
[null,null,"Лимоны",40,null,"Лимоны","Eureka",40]
[]
[null,null,"Фрукт","СЧЁТЕСЛИ",null,"Фрукт","Сорт","СЧЁТЕСЛИМН"]
[null,null,"Яблоки",{"$f":"COUNTIF(C50:C61,C64)","v":3},null,"Апельсины","Florida",{"$f":"COUNTIFS(F50:F61,F64,G50:G61,G64)","v":1}]
{"$rows_empty":26}
[null,null,"Фрукт","Сорт","Количество"]
[null,null,"Яблоки","Fuji",50]
[null,null,"Апельсины","Florida",20]
[null,null,"Бананы","Cavendish",60]
[null,null,"Лимоны","Rough",40]
[null,null,"Яблоки","Honeycrisp",50]
[null,null,"Апельсины","Navel",20]
[null,null,"Бананы","Lady Finger",60]
[null,null,"Лимоны","Eureka",40]
[null,null,"Яблоки","Honeycrisp",50]
[null,null,"Апельсины","Navel",20]
[null,null,"Бананы","Cavendish",60]
[null,null,"Лимоны","Eureka",40]
[]
[null,null,"Фрукт","Сорт","Попробуйте сами"]
[null,null,"Лимоны","Eureka",{"$f":"AVERAGEIFS(E92:E103,C92:C103,C106,D92:D103,D106)","v":40}]
{"$rows_empty":10}
[null,null,"Наименование","Количество"]
[null,null,"Хлеб",50]
[null,null,"Пончики",100]
[null,null,"Печенье",40]
[null,null,"Торты",50]
[null,null,"Пироги",20]
[{"$nulls":3},{"$f":"SUMIF(D118:D122,\">=50\")","v":200}]

{"sheet":"Мастер функций","index":10,"n_rows":14,"n_cols":4,"rows_kept":14}
["Используйте мастер функций"]
["Если вы знаете имя функции, но не помните, как ее вводить, воспользуйтесь мастером функций.\n"]
["Выделите ячейку D10, а затем на вкладке «Формулы» нажмите кнопку «Вставить функцию», введите ВПР в поле «Поиск функции» и нажмите кнопку «Найти». Когда функция ВПР будет выделена, нажмите кнопку ОК внизу. Когда вы выбираете функцию в списке, Excel отображает ее синтаксис.\n"]
["Затем вы можете ввести аргументы функции в соответствующие текстовые поля. При вводе каждого аргумента Excel обработает его и покажет результат. Внизу окна выводится окончательный результат. При вводе каждой части формулы условия для каждого аргумента указываются в нижней части формы. Когда вы закончите работу, нажмите клавишу «ОК», и Excel введет формулу.\n\n\n",null,"Фрукт","Количество"]
["ПОПРОБУЙТЕ САМИ!\nВы должны получить формулу =ВПР(C10;C5:D8;2;ЛОЖЬ).",null,"Яблоки",50]
["ПОЛЕЗНЫЕ СВЕДЕНИЯ\nВы можете ввести ссылки на ячейки и диапазоны или выбрать их с помощью мыши.",null,"Апельсины",20]
["ПОЛЕЗНЫЕ СВЕДЕНИЯ\nПри вводе каждого аргумента его описание выводится в нижней части формы (над результатом формулы).\n",null,"Бананы",60]
["Назад",null,"Лимоны",40]
["Далее"]
["Дополнительные сведения в Интернете",null,"Яблоки",{"$f":"VLOOKUP(C10,C5:D8,2,FALSE)","v":50}]
["Полные сведения о формулах в Excel"]
["Функции Excel (по категориям)"]
["Функции Excel (по алфавиту)"]
["Бесплатные учебные веб-курсы по Excel"]

{"sheet":"Ошибки в формулах","index":11,"n_rows":36,"n_cols":4,"rows_kept":36}
["Исправление ошибок в формулах"]
["Рано или поздно вам встретится формула с ошибкой, которую Excel обозначает сообщением #ОШИБКА! Ошибки могут быть полезны, так как они указывают на то, что что-то не работает, но иногда их сложно исправить. К счастью, существует несколько решений, которые помогут вам определить причину ошибки и исправить ее.\n"]
["Проверка ошибок: выберите «Формулы» > «Проверка ошибок». Откроется диалоговое окно, в котором указана общая причина ошибки. Ошибка #Н/Д в ячейке D9 вызвана отсутствием значения «Яблоко». Вы можете исправить ошибку, указав существующее значение, скрыть ее, используя функцию ЕСЛИОШИБКА, или проигнорировать ошибку, так как она исчезнет, когда вы введете допустимое значение.\n",null,"Фрукт","Количество"]
["Если нажать кнопку «Справка по этой ошибке», откроется раздел справки, посвященный сообщению об ошибке. Если щелкнуть «Показать этапы вычисления», появится диалоговое окно вычисления формулы.\n",null,"Яблоки",50]
["При каждом нажатии кнопки «Вычислить» Excel будет обрабатывать одну часть формулы. Даже если Excel не укажет напрямую, в чем ошибка, вы сможете понять, где она возникла. После этого прочтите раздел справки, чтобы понять, что не так с формулой.\n",null,"Апельсины",20]
["ЭКСПЕРИМЕНТ\nВ чем тут проблема? Подсказка. Мы пытаемся вычислить СУММУ всех чисел.",null,"Бананы",60]
["ПОЛЕЗНЫЕ СВЕДЕНИЯ\nНажав кнопку «Параметры», можно задать правила отображения или игнорирования ошибок.\n",null,"Лимоны",40]
["Назад"]
["Далее",null,"Яблоко",{"$f":"VLOOKUP(C9,C3:D7,2,FALSE)","v":{"$error":"#N/A"}}]
["Дополнительные сведения в Интернете"]
["Поиск ошибок в формулах"]
["Рекомендации, позволяющие избежать появления неработающих формул"]
["Вычисление вложенной формулы по шагам"]
["Бесплатные учебные веб-курсы по Excel"]
{"$rows_empty":15}
[null,null,"Фрукт","Количество"]
[null,null,"Яблоки",50]
[null,null,"Апельсины",20]
[null,null,"Бананы",60]
[null,null,"Лимоны",40]
[]
[null,null,"Итого",{"$f":"sume(D31:D34)","v":{"$error":"#NAME?"}}]

{"sheet":"Дополнительные сведения","index":12,"n_rows":5,"n_cols":1,"rows_kept":5}
["Есть еще вопросы об Excel?"]
["Нажмите клавиши ALT+X и введите свой запрос."]
["Это еще не все. Есть чему поучиться с Excel:"]
["Сообщество: Задавайте вопросы и общайтесь с другими фанатами Excel.\n"]
["Что нового?\nПодписчики Office 365 постоянно получают обновления и новые функции.\n\n"]